[Event "Titled Tuesday Blitz May 30 Early 2023"]
[White "Jovic, Stanoje"]
[Black "Shuvalov, Evgenij"]
[WhiteFideId "905020"]
[BlackFideId "4187237"]
[WhiteElo "2236"]
[BlackElo "2080"]
[Result "0-1"]
[Round "05"]
[TimeControl "180+2"]
[Date "2023.05.30"]
[WhiteClock "0:00:00"]
[BlackClock "0:01:27"]

1. c4 {[%clk 0:03:00]}  Nf6 {[%clk 0:02:59]} 2. g3 {[%clk 0:03:01]}  c6 {[%clk 0:02:58]} 3. Bg2 {[%clk 0:03:01]}  d5 {[%clk 0:02:59]} 4. cxd5 {[%clk 0:03:01]}  cxd5 {[%clk 0:02:59]} 5. Nf3 {[%clk 0:03:01]}  Nc6 {[%clk 0:02:59]} 6. d4 {[%clk 0:03:01]}  Bf5 {[%clk 0:02:59]} 7. Nc3 {[%clk 0:02:58]}  e6 {[%clk 0:02:59]} 8. O-O {[%clk 0:02:58]}  h6 {[%clk 0:02:58]} 9. Bf4 {[%clk 0:02:51]}  Be7 {[%clk 0:02:57]} 10. Rc1 {[%clk 0:02:50]}  O-O {[%clk 0:02:56]} 11. Ne5 {[%clk 0:02:49]}  Rc8 {[%clk 0:02:55]} 12. Nxc6 {[%clk 0:02:48]}  Rxc6 {[%clk 0:02:55]} 13. f3 {[%clk 0:02:44]}  Qb6 {[%clk 0:02:51]} 14. Na4 {[%clk 0:02:37]}  Qa6 {[%clk 0:02:42]} 15. Rxc6 {[%clk 0:02:32]}  Qxc6 {[%clk 0:02:40]} 16. Nc3 {[%clk 0:02:21]}  Qb6 {[%clk 0:02:23]} 17. e4 {[%clk 0:02:14]}  Bh7 {[%clk 0:02:18]} 18. Qd2 {[%clk 0:02:05]}  dxe4 {[%clk 0:02:02]} 19. fxe4 {[%clk 0:02:03]}  Rd8 {[%clk 0:02:03]} 20. Be3 {[%clk 0:01:19]}  Ng4 {[%clk 0:02:01]} 21. Rd1 {[%clk 0:01:04]}  Bf6 {[%clk 0:01:42]} 22. Na4 {[%clk 0:00:52]}  Qb5 {[%clk 0:01:29]} 23. Bf1 {[%clk 0:00:00]}  Qxa4 {[%clk 0:01:27]} 0-1


[Site "https://www.chess.com"]

[Event "Titled Tuesday Blitz May 30 Early 2023"]
[White "Arencibia Monduy, Antonio"]
[Black "Melian, Juan Sebastian"]
[WhiteFideId "3507939"]
[BlackFideId "3706575"]
[WhiteElo "2426"]
[BlackElo "2092"]
[Result "0-1"]
[Round "05"]
[TimeControl "180+2"]
[Date "2023.05.30"]
[WhiteClock "0:00:00"]
[BlackClock "0:00:05"]

1. e4 {[%clk 0:03:00]}  c5 {[%clk 0:02:57]} 2. Nf3 {[%clk 0:03:00]}  e6 {[%clk 0:02:58]} 3. c3 {[%clk 0:03:01]}  Nf6 {[%clk 0:02:57]} 4. e5 {[%clk 0:03:01]}  Nd5 {[%clk 0:02:58]} 5. d4 {[%clk 0:03:01]}  cxd4 {[%clk 0:02:59]} 6. cxd4 {[%clk 0:03:02]}  d6 {[%clk 0:03:00]} 7. exd6 {[%clk 0:03:02]}  Bxd6 {[%clk 0:03:01]} 8. Bd3 {[%clk 0:03:02]}  O-O {[%clk 0:02:59]} 9. O-O {[%clk 0:03:02]}  b6 {[%clk 0:02:54]} 10. Qe2 {[%clk 0:02:59]}  Bb7 {[%clk 0:02:54]} 11. Qe4 {[%clk 0:02:58]}  Nf6 {[%clk 0:02:52]} 12. Qh4 {[%clk 0:02:57]}  Be7 {[%clk 0:02:34]} 13. Be3 {[%clk 0:02:32]}  Nbd7 {[%clk 0:02:26]} 14. Nbd2 {[%clk 0:02:30]}  Re8 {[%clk 0:02:26]} 15. Rad1 {[%clk 0:02:13]}  Nf8 {[%clk 0:02:23]} 16. Qh3 {[%clk 0:01:59]}  Rc8 {[%clk 0:02:13]} 17. Ne5 {[%clk 0:01:55]}  Nd5 {[%clk 0:01:53]} 18. Bb5 {[%clk 0:01:23]}  f6 {[%clk 0:00:55]} 19. Nef3 {[%clk 0:01:18]}  Bc6 {[%clk 0:00:53]} 20. Bd3 {[%clk 0:01:08]}  Bd6 {[%clk 0:00:47]} 21. Rfe1 {[%clk 0:01:03]}  Bf4 {[%clk 0:00:38]} 22. Ba6 {[%clk 0:00:53]}  Rc7 {[%clk 0:00:35]} 23. Bc4 {[%clk 0:00:44]}  Bxe3 {[%clk 0:00:15]} 24. fxe3 {[%clk 0:00:44]}  Nb4 {[%clk 0:00:12]} 25. a3 {[%clk 0:00:34]}  Nd5 {[%clk 0:00:12]} 26. Qg3 {[%clk 0:00:31]}  Rd7 {[%clk 0:00:07]} 27. Rc1 {[%clk 0:00:31]}  Bb7 {[%clk 0:00:06]} 28. e4 {[%clk 0:00:30]}  Ne7 {[%clk 0:00:06]} 29. Qf2 {[%clk 0:00:25]}  Kh8 {[%clk 0:00:06]} 30. Bb5 {[%clk 0:00:26]}  a6 {[%clk 0:00:04]} 31. Bxd7 {[%clk 0:00:26]}  Qxd7 {[%clk 0:00:05]} 32. Nc4 {[%clk 0:00:25]}  b5 {[%clk 0:00:04]} 33. Ne3 {[%clk 0:00:22]}  Bxe4 {[%clk 0:00:04]} 34. Nd1 {[%clk 0:00:16]}  Bd5 {[%clk 0:00:02]} 35. Nc3 {[%clk 0:00:16]}  Bb7 {[%clk 0:00:02]} 36. Ne4 {[%clk 0:00:16]}  Bd5 {[%clk 0:00:01]} 37. Nc5 {[%clk 0:00:16]}  Qd6 {[%clk 0:00:02]} 38. b4 {[%clk 0:00:16]}  Nf5 {[%clk 0:00:02]} 39. Rcd1 {[%clk 0:00:15]}  Ng6 {[%clk 0:00:03]} 40. Ne4 {[%clk 0:00:11]}  Bxe4 {[%clk 0:00:03]} 41. Rxe4 {[%clk 0:00:10]}  Qd5 {[%clk 0:00:04]} 42. Rde1 {[%clk 0:00:11]}  Kg8 {[%clk 0:00:04]} 43. h3 {[%clk 0:00:10]}  Kf7 {[%clk 0:00:04]} 44. Qe2 {[%clk 0:00:10]}  Nd6 {[%clk 0:00:05]} 45. Re3 {[%clk 0:00:09]}  Nf4 {[%clk 0:00:05]} 46. Qf2 {[%clk 0:00:09]}  Qf5 {[%clk 0:00:06]} 47. Qg3 {[%clk 0:00:07]}  g5 {[%clk 0:00:05]} 48. Nh2 {[%clk 0:00:07]}  Nd5 {[%clk 0:00:05]} 49. Rf3 {[%clk 0:00:07]}  Nf4 {[%clk 0:00:03]} 50. Ng4 {[%clk 0:00:05]}  Kg6 {[%clk 0:00:04]} 51. Kh2 {[%clk 0:00:05]}  h5 {[%clk 0:00:04]} 52. Ne3 {[%clk 0:00:05]}  h4 {[%clk 0:00:04]} 53. Nxf5 {[%clk 0:00:05]}  hxg3+ {[%clk 0:00:05]} 54. Nxg3 {[%clk 0:00:05]}  Rc8 {[%clk 0:00:05]} 55. Ne4 {[%clk 0:00:05]}  Nf5 {[%clk 0:00:05]} 56. Ng3 {[%clk 0:00:03]}  Nxd4 {[%clk 0:00:05]} 57. Rfe3 {[%clk 0:00:00]}  e5 {[%clk 0:00:05]} 0-1


[Site "https://www.chess.com"]

[Event "Titled Tuesday Blitz May 30 Early 2023"]
[White "Kiremitciyan, Ari"]
[Black "Srebrnic, Marko"]
[WhiteFideId "6373445"]
[BlackFideId "14603616"]
[WhiteElo "2181"]
[BlackElo "2341"]
[Result "1/2-1/2"]
[Round "05"]
[TimeControl "180+2"]
[Date "2023.05.30"]
[WhiteClock "0:00:06"]
[BlackClock "0:00:13"]

1. Nf3 {[%clk 0:02:59]}  Nf6 {[%clk 0:02:59]} 2. c4 {[%clk 0:02:58]}  d6 {[%clk 0:02:58]} 3. g3 {[%clk 0:02:58]}  e5 {[%clk 0:02:53]} 4. Bg2 {[%clk 0:02:58]}  c5 {[%clk 0:02:51]} 5. O-O {[%clk 0:02:58]}  Nc6 {[%clk 0:02:47]} 6. Nc3 {[%clk 0:02:58]}  Be7 {[%clk 0:02:45]} 7. Ne1 {[%clk 0:02:57]}  O-O {[%clk 0:02:42]} 8. Nc2 {[%clk 0:02:58]}  Be6 {[%clk 0:02:33]} 9. Ne3 {[%clk 0:02:57]}  Rb8 {[%clk 0:02:23]} 10. Ned5 {[%clk 0:02:42]}  a6 {[%clk 0:02:10]} 11. b3 {[%clk 0:02:32]}  Ne8 {[%clk 0:01:55]} 12. a4 {[%clk 0:02:19]}  f5 {[%clk 0:01:53]} 13. d3 {[%clk 0:02:18]}  f4 {[%clk 0:01:43]} 14. gxf4 {[%clk 0:02:14]}  exf4 {[%clk 0:01:43]} 15. Nxf4 {[%clk 0:02:12]}  Bf7 {[%clk 0:01:41]} 16. Ncd5 {[%clk 0:01:54]}  Bg5 {[%clk 0:01:34]} 17. e3 {[%clk 0:01:43]}  Nf6 {[%clk 0:01:30]} 18. Bb2 {[%clk 0:01:38]}  Ne5 {[%clk 0:01:25]} 19. Nxf6+ {[%clk 0:01:34]}  Bxf6 {[%clk 0:01:15]} 20. Qe2 {[%clk 0:01:18]}  b5 {[%clk 0:01:08]} 21. axb5 {[%clk 0:01:17]}  axb5 {[%clk 0:01:09]} 22. Nd5 {[%clk 0:01:08]}  bxc4 {[%clk 0:01:05]} 23. Nxf6+ {[%clk 0:00:50]}  Qxf6 {[%clk 0:01:02]} 24. Bxe5 {[%clk 0:00:47]}  cxd3 {[%clk 0:00:47]} 25. Qxd3 {[%clk 0:00:18]}  Qxe5 {[%clk 0:00:47]} 26. Rfd1 {[%clk 0:00:11]}  Rfd8 {[%clk 0:00:47]} 27. Rab1 {[%clk 0:00:06]}  Bg6 {[%clk 0:00:41]} 28. Qd5+ {[%clk 0:00:05]}  Qxd5 {[%clk 0:00:39]} 29. Bxd5+ {[%clk 0:00:06]}  Kf8 {[%clk 0:00:39]} 30. Rb2 {[%clk 0:00:06]}  Bf7 {[%clk 0:00:36]} 31. Bxf7 {[%clk 0:00:05]}  Kxf7 {[%clk 0:00:37]} 32. Kf1 {[%clk 0:00:05]}  Rb4 {[%clk 0:00:36]} 33. Ke2 {[%clk 0:00:06]}  Ke6 {[%clk 0:00:36]} 34. Rg1 {[%clk 0:00:06]}  g6 {[%clk 0:00:36]} 35. Ra1 {[%clk 0:00:06]}  Rdb8 {[%clk 0:00:33]} 36. Ra7 {[%clk 0:00:04]}  R8b7 {[%clk 0:00:31]} 37. Rxb7 {[%clk 0:00:04]}  Rxb7 {[%clk 0:00:32]} 38. Kd3 {[%clk 0:00:04]}  Rb4 {[%clk 0:00:30]} 39. Kc3 {[%clk 0:00:01]}  Rh4 {[%clk 0:00:28]} 40. f3 {[%clk 0:00:01]}  Rh3 {[%clk 0:00:28]} 41. Rf2 {[%clk 0:00:02]}  g5 {[%clk 0:00:27]} 42. Kc4 {[%clk 0:00:01]}  Rh4+ {[%clk 0:00:26]} 43. Kc3 {[%clk 0:00:01]}  Ke5 {[%clk 0:00:24]} 44. Kd3 {[%clk 0:00:01]}  d5 {[%clk 0:00:22]} 45. Kc3 {[%clk 0:00:02]}  h6 {[%clk 0:00:16]} 46. Kc2 {[%clk 0:00:03]}  d4 {[%clk 0:00:13]} 47. Kd3 {[%clk 0:00:03]}  dxe3 {[%clk 0:00:13]} 48. Kxe3 {[%clk 0:00:04]}  Rb4 {[%clk 0:00:13]} 49. Rb2 {[%clk 0:00:05]}  Rh4 {[%clk 0:00:13]} 50. Rc2 {[%clk 0:00:04]}  Kd5 {[%clk 0:00:12]} 51. Rd2+ {[%clk 0:00:05]}  Kc6 {[%clk 0:00:12]} 52. Rc2 {[%clk 0:00:05]}  Kb5 {[%clk 0:00:12]} 53. Kd3 {[%clk 0:00:05]}  Rh3 {[%clk 0:00:11]} 54. Rf2 {[%clk 0:00:04]}  Kb4 {[%clk 0:00:12]} 55. Kc2 {[%clk 0:00:05]}  Rh4 {[%clk 0:00:12]} 56. Rg2 {[%clk 0:00:04]}  Rd4 {[%clk 0:00:11]} 57. Rg4 {[%clk 0:00:04]}  Rxg4 {[%clk 0:00:08]} 58. fxg4 {[%clk 0:00:05]}  c4 {[%clk 0:00:08]} 59. bxc4 {[%clk 0:00:05]}  Kxc4 {[%clk 0:00:09]} 60. Kd2 {[%clk 0:00:05]}  Kd4 {[%clk 0:00:10]} 61. Ke2 {[%clk 0:00:05]}  Ke4 {[%clk 0:00:11]} 62. Kf2 {[%clk 0:00:05]}  Ke5 {[%clk 0:00:11]} 63. Ke3 {[%clk 0:00:05]}  Kd5 {[%clk 0:00:11]} 64. Kd3 {[%clk 0:00:05]}  Ke5 {[%clk 0:00:12]} 65. Ke3 {[%clk 0:00:05]}  Kd5 {[%clk 0:00:12]} 66. Kd3 {[%clk 0:00:05]}  Ke5 {[%clk 0:00:13]} 67. Ke3 {[%clk 0:00:06]} 1/2-1/2


[Site "https://www.chess.com"]

[Event "Titled Tuesday Blitz May 30 Early 2023"]
[White "Baghdasaryan, Vahe"]
[Black "KorolDimitriy75"]
[WhiteFideId "13303139"]
[WhiteElo "2216"]
[BlackElo "2420"]
[Result "1-0"]
[Round "05"]
[TimeControl "180+2"]
[Date "2023.05.30"]
[WhiteClock "0:00:25"]
[BlackClock "0:00:08"]

1. e4 {[%clk 0:02:49]}  c5 {[%clk 0:02:59]} 2. Nf3 {[%clk 0:02:49]}  d6 {[%clk 0:02:59]} 3. d4 {[%clk 0:02:50]}  cxd4 {[%clk 0:03:00]} 4. Nxd4 {[%clk 0:02:51]}  Nf6 {[%clk 0:03:00]} 5. Nc3 {[%clk 0:02:51]}  g6 {[%clk 0:03:01]} 6. Be3 {[%clk 0:02:50]}  Bg7 {[%clk 0:03:02]} 7. Bc4 {[%clk 0:02:50]}  O-O {[%clk 0:03:02]} 8. f3 {[%clk 0:02:48]}  Nc6 {[%clk 0:03:02]} 9. Qd2 {[%clk 0:02:46]}  Bd7 {[%clk 0:03:02]} 10. h4 {[%clk 0:02:45]}  Qa5 {[%clk 0:03:02]} 11. O-O-O {[%clk 0:02:40]}  Rfc8 {[%clk 0:03:02]} 12. Bb3 {[%clk 0:02:40]}  Ne5 {[%clk 0:03:02]} 13. Kb1 {[%clk 0:02:39]}  b5 {[%clk 0:03:01]} 14. h5 {[%clk 0:02:39]}  Nc4 {[%clk 0:03:00]} 15. Bxc4 {[%clk 0:02:26]}  bxc4 {[%clk 0:03:01]} 16. hxg6 {[%clk 0:02:21]}  fxg6 {[%clk 0:03:02]} 17. Bh6 {[%clk 0:02:22]}  Bh8 {[%clk 0:03:02]} 18. e5 {[%clk 0:02:09]}  dxe5 {[%clk 0:02:23]} 19. Nde2 {[%clk 0:02:07]}  Rab8 {[%clk 0:02:17]} 20. g4 {[%clk 0:01:18]}  Qb4 {[%clk 0:01:44]} 21. Qc1 {[%clk 0:01:16]}  Be6 {[%clk 0:01:29]} 22. g5 {[%clk 0:01:15]}  Nh5 {[%clk 0:01:27]} 23. Rxh5 {[%clk 0:00:53]}  gxh5 {[%clk 0:01:26]} 24. Ne4 {[%clk 0:00:53]}  c3 {[%clk 0:01:06]} 25. b3 {[%clk 0:00:52]}  a5 {[%clk 0:00:52]} 26. g6 {[%clk 0:00:44]}  hxg6 {[%clk 0:00:48]} 27. Qg5 {[%clk 0:00:44]}  Bf5 {[%clk 0:00:44]} 28. Rg1 {[%clk 0:00:31]}  Qa3 {[%clk 0:00:28]} 29. N2xc3 {[%clk 0:00:30]}  Rxc3 {[%clk 0:00:17]} 30. Qxf5 {[%clk 0:00:30]}  Rcxb3+ {[%clk 0:00:12]} 31. cxb3 {[%clk 0:00:29]}  Rxb3+ {[%clk 0:00:12]} 32. axb3 {[%clk 0:00:29]}  Qxb3+ {[%clk 0:00:13]} 33. Kc1 {[%clk 0:00:29]}  Qc4+ {[%clk 0:00:13]} 34. Kd2 {[%clk 0:00:27]}  Qd4+ {[%clk 0:00:13]} 35. Ke2 {[%clk 0:00:27]}  Qxg1 {[%clk 0:00:13]} 36. Qf8+ {[%clk 0:00:24]}  Kh7 {[%clk 0:00:13]} 37. Ng5+ {[%clk 0:00:24]}  Qxg5 {[%clk 0:00:08]} 38. Bxg5 {[%clk 0:00:25]} 1-0


[Site "https://www.chess.com"]

[Event "Titled Tuesday Blitz May 30 Early 2023"]
[White "cristianserban1"]
[Black "Sousa, Andre Ventura"]
[BlackFideId "1917617"]
[WhiteElo "2505"]
[BlackElo "2333"]
[Result "0-1"]
[Round "05"]
[TimeControl "180+2"]
[Date "2023.05.30"]
[WhiteClock "0:00:01"]
[BlackClock "0:00:48"]

1. d4 {[%clk 0:02:58]}  Nf6 {[%clk 0:03:00]} 2. Bf4 {[%clk 0:02:58]}  e6 {[%clk 0:02:59]} 3. Nf3 {[%clk 0:02:58]}  c5 {[%clk 0:02:59]} 4. e3 {[%clk 0:02:58]}  cxd4 {[%clk 0:02:59]} 5. exd4 {[%clk 0:02:59]}  b6 {[%clk 0:02:59]} 6. c3 {[%clk 0:02:58]}  Be7 {[%clk 0:02:57]} 7. Be2 {[%clk 0:02:57]}  Ba6 {[%clk 0:02:57]} 8. Nbd2 {[%clk 0:02:56]}  O-O {[%clk 0:02:53]} 9. h3 {[%clk 0:02:53]}  Bxe2 {[%clk 0:02:52]} 10. Qxe2 {[%clk 0:02:54]}  Nc6 {[%clk 0:02:52]} 11. O-O {[%clk 0:02:54]}  d6 {[%clk 0:02:42]} 12. a4 {[%clk 0:02:46]}  Rc8 {[%clk 0:02:38]} 13. Rfe1 {[%clk 0:02:46]}  Na5 {[%clk 0:02:37]} 14. Rac1 {[%clk 0:02:30]}  h6 {[%clk 0:02:30]} 15. b4 {[%clk 0:02:26]}  Nc6 {[%clk 0:02:29]} 16. Nb3 {[%clk 0:02:24]}  d5 {[%clk 0:02:22]} 17. Nfd2 {[%clk 0:02:16]}  Bd6 {[%clk 0:02:11]} 18. Be3 {[%clk 0:02:11]}  Ne7 {[%clk 0:02:09]} 19. g4 {[%clk 0:02:06]}  Ng6 {[%clk 0:02:07]} 20. Qf3 {[%clk 0:02:04]}  Rc7 {[%clk 0:02:02]} 21. a5 {[%clk 0:01:45]}  Qc8 {[%clk 0:02:02]} 22. Nb1 {[%clk 0:01:02]}  Ne4 {[%clk 0:02:00]} 23. Bd2 {[%clk 0:01:02]}  f5 {[%clk 0:01:56]} 24. Re2 {[%clk 0:00:48]}  Nh4 {[%clk 0:01:46]} 25. Qd3 {[%clk 0:00:48]}  fxg4 {[%clk 0:01:44]} 26. hxg4 {[%clk 0:00:46]}  e5 {[%clk 0:01:39]} 27. Qh3 {[%clk 0:00:35]}  Nf3+ {[%clk 0:01:29]} 28. Kg2 {[%clk 0:00:35]}  Neg5 {[%clk 0:01:10]} 29. Bxg5 {[%clk 0:00:35]}  Nxg5 {[%clk 0:01:11]} 30. Qh5 {[%clk 0:00:32]}  e4 {[%clk 0:01:06]} 31. axb6 {[%clk 0:00:27]}  axb6 {[%clk 0:01:05]} 32. Rh1 {[%clk 0:00:22]}  Rf4 {[%clk 0:01:01]} 33. Rh4 {[%clk 0:00:20]}  Rcf7 {[%clk 0:00:56]} 34. Kf1 {[%clk 0:00:05]}  Qc4 {[%clk 0:00:48]} 35. N3d2 {[%clk 0:00:01]}  Rxf2+ {[%clk 0:00:48]} 0-1


[Site "https://www.chess.com"]

[Event "Titled Tuesday Blitz May 30 Early 2023"]
[White "Gontcharov, Vladislav"]
[Black "ChawitAp"]
[WhiteFideId "4123492"]
[WhiteElo "2420"]
[BlackElo "2414"]
[Result "1-0"]
[Round "05"]
[TimeControl "180+2"]
[Date "2023.05.30"]
[WhiteClock "0:00:21"]
[BlackClock "0:00:00"]

1. d4 {[%clk 0:03:00]}  d5 {[%clk 0:02:59]} 2. c4 {[%clk 0:03:00]}  c6 {[%clk 0:02:59]} 3. Nf3 {[%clk 0:03:00]}  Nf6 {[%clk 0:02:59]} 4. e3 {[%clk 0:02:58]}  a6 {[%clk 0:02:58]} 5. Nc3 {[%clk 0:02:54]}  Bf5 {[%clk 0:02:59]} 6. c5 {[%clk 0:02:50]}  Nbd7 {[%clk 0:02:57]} 7. h3 {[%clk 0:02:38]}  e5 {[%clk 0:02:57]} 8. Be2 {[%clk 0:02:23]}  Ne4 {[%clk 0:02:47]} 9. O-O {[%clk 0:02:11]}  Be7 {[%clk 0:02:45]} 10. Nxe4 {[%clk 0:01:56]}  Bxe4 {[%clk 0:02:45]} 11. Bd2 {[%clk 0:01:49]}  Bf6 {[%clk 0:02:41]} 12. Bc3 {[%clk 0:01:44]}  exd4 {[%clk 0:02:34]} 13. Bxd4 {[%clk 0:01:41]}  O-O {[%clk 0:02:30]} 14. Rc1 {[%clk 0:01:39]}  Re8 {[%clk 0:02:27]} 15. Qa4 {[%clk 0:01:20]}  Bxd4 {[%clk 0:02:09]} 16. Nxd4 {[%clk 0:01:12]}  Qg5 {[%clk 0:02:03]} 17. g3 {[%clk 0:01:06]}  Re7 {[%clk 0:01:19]} 18. Kh2 {[%clk 0:01:05]}  Rae8 {[%clk 0:01:15]} 19. Qb3 {[%clk 0:01:03]}  Nf6 {[%clk 0:01:07]} 20. Qc3 {[%clk 0:00:54]}  h5 {[%clk 0:01:02]} 21. f4 {[%clk 0:00:53]}  Qh6 {[%clk 0:00:53]} 22. Rce1 {[%clk 0:00:50]}  Bh7 {[%clk 0:00:49]} 23. Bd1 {[%clk 0:00:47]}  Ne4 {[%clk 0:00:43]} 24. Qc1 {[%clk 0:00:42]}  Qg6 {[%clk 0:00:25]} 25. Rg1 {[%clk 0:00:41]}  Qh6 {[%clk 0:00:18]} 26. Bc2 {[%clk 0:00:39]}  Nf6 {[%clk 0:00:14]} 27. Bd1 {[%clk 0:00:30]}  Be4 {[%clk 0:00:08]} 28. b4 {[%clk 0:00:28]}  Qg6 {[%clk 0:00:03]} 29. a4 {[%clk 0:00:26]}  Qh6 {[%clk 0:00:03]} 30. b5 {[%clk 0:00:26]}  axb5 {[%clk 0:00:03]} 31. axb5 {[%clk 0:00:26]}  Nd7 {[%clk 0:00:03]} 32. bxc6 {[%clk 0:00:26]}  bxc6 {[%clk 0:00:04]} 33. Qc3 {[%clk 0:00:23]}  h4 {[%clk 0:00:03]} 34. g4 {[%clk 0:00:23]}  g6 {[%clk 0:00:01]} 35. g5 {[%clk 0:00:24]}  Qf8 {[%clk 0:00:01]} 36. Bg4 {[%clk 0:00:24]}  Nb8 {[%clk 0:00:01]} 37. Re2 {[%clk 0:00:22]}  Ra7 {[%clk 0:00:00]} 38. Qe1 {[%clk 0:00:21]} 1-0


[Site "https://www.chess.com"]

[Event "Titled Tuesday Blitz May 30 Early 2023"]
[White "Bodnaruk, Anastasia"]
[Black "Mazurkiewicz, Michal"]
[WhiteFideId "4181751"]
[BlackFideId "1124943"]
[WhiteElo "2304"]
[BlackElo "2054"]
[Result "1-0"]
[Round "05"]
[TimeControl "180+2"]
[Date "2023.05.30"]
[WhiteClock "0:00:23"]
[BlackClock "0:00:00"]

1. e4 {[%clk 0:03:00]}  d6 {[%clk 0:02:59]} 2. d4 {[%clk 0:02:59]}  Nf6 {[%clk 0:02:59]} 3. Nc3 {[%clk 0:03:00]}  c6 {[%clk 0:03:00]} 4. f4 {[%clk 0:02:57]}  Qb6 {[%clk 0:02:59]} 5. Nf3 {[%clk 0:02:53]}  Bg4 {[%clk 0:02:59]} 6. Be2 {[%clk 0:02:51]}  e6 {[%clk 0:02:58]} 7. O-O {[%clk 0:02:42]}  d5 {[%clk 0:02:57]} 8. e5 {[%clk 0:02:40]}  Nfd7 {[%clk 0:02:56]} 9. Kh1 {[%clk 0:02:12]}  c5 {[%clk 0:02:53]} 10. Na4 {[%clk 0:02:06]}  Qa5 {[%clk 0:02:53]} 11. c3 {[%clk 0:02:02]}  Bxf3 {[%clk 0:02:53]} 12. Bxf3 {[%clk 0:02:02]}  cxd4 {[%clk 0:02:53]} 13. cxd4 {[%clk 0:02:01]}  g6 {[%clk 0:02:52]} 14. Be3 {[%clk 0:01:55]}  Nc6 {[%clk 0:02:52]} 15. a3 {[%clk 0:01:52]}  b5 {[%clk 0:02:46]} 16. Nc5 {[%clk 0:01:50]}  Nxc5 {[%clk 0:02:45]} 17. dxc5 {[%clk 0:01:50]}  Qc7 {[%clk 0:02:30]} 18. b4 {[%clk 0:01:46]}  Be7 {[%clk 0:02:31]} 19. Be2 {[%clk 0:01:40]}  Qb7 {[%clk 0:02:26]} 20. a4 {[%clk 0:01:34]}  Nxb4 {[%clk 0:01:57]} 21. axb5 {[%clk 0:01:30]}  O-O {[%clk 0:01:50]} 22. Bd4 {[%clk 0:01:16]}  a5 {[%clk 0:01:44]} 23. Qa4 {[%clk 0:00:54]}  Rfc8 {[%clk 0:01:18]} 24. Rfc1 {[%clk 0:00:54]}  Qa7 {[%clk 0:00:38]} 25. b6 {[%clk 0:00:51]}  Qb7 {[%clk 0:00:37]} 26. Bb5 {[%clk 0:00:47]}  Nc6 {[%clk 0:00:37]} 27. Rab1 {[%clk 0:00:39]}  Nxd4 {[%clk 0:00:32]} 28. Qxd4 {[%clk 0:00:38]}  Rab8 {[%clk 0:00:28]} 29. Ba4 {[%clk 0:00:32]}  Qa6 {[%clk 0:00:05]} 30. c6 {[%clk 0:00:30]}  Qe2 {[%clk 0:00:02]} 31. c7 {[%clk 0:00:24]}  Rb7 {[%clk 0:00:00]} 32. Bd7 {[%clk 0:00:23]} 1-0


[Site "https://www.chess.com"]

[Event "Titled Tuesday Blitz May 30 Early 2023"]
[White "Moral Garcia, Serafin"]
[Black "Avalos Parra, Joao"]
[WhiteFideId "2201925"]
[BlackFideId "3402541"]
[WhiteElo "2274"]
[BlackElo "2173"]
[Result "1-0"]
[Round "05"]
[TimeControl "180+2"]
[Date "2023.05.30"]
[WhiteClock "0:00:36"]
[BlackClock "0:00:00"]

1. c4 {[%clk 0:03:00]}  e6 {[%clk 0:03:00]} 2. Nf3 {[%clk 0:03:00]}  d5 {[%clk 0:03:00]} 3. e3 {[%clk 0:03:00]}  Nf6 {[%clk 0:03:00]} 4. b3 {[%clk 0:03:00]}  c5 {[%clk 0:02:57]} 5. Bb2 {[%clk 0:03:01]}  Nc6 {[%clk 0:02:58]} 6. cxd5 {[%clk 0:02:59]}  exd5 {[%clk 0:02:59]} 7. Nc3 {[%clk 0:02:59]}  a6 {[%clk 0:02:55]} 8. d4 {[%clk 0:02:58]}  Be7 {[%clk 0:02:46]} 9. dxc5 {[%clk 0:02:53]}  Bxc5 {[%clk 0:02:46]} 10. Be2 {[%clk 0:02:51]}  O-O {[%clk 0:02:44]} 11. O-O {[%clk 0:02:50]}  Ba7 {[%clk 0:02:44]} 12. Rc1 {[%clk 0:02:44]}  d4 {[%clk 0:02:29]} 13. exd4 {[%clk 0:02:43]}  Nxd4 {[%clk 0:02:29]} 14. Nxd4 {[%clk 0:02:43]}  Qxd4 {[%clk 0:02:27]} 15. Bf3 {[%clk 0:02:42]}  Qf4 {[%clk 0:01:34]} 16. Nd5 {[%clk 0:02:25]}  Nxd5 {[%clk 0:01:33]} 17. Qxd5 {[%clk 0:02:25]}  Qb4 {[%clk 0:00:24]} 18. Rc4 {[%clk 0:01:38]}  Qb5 {[%clk 0:00:17]} 19. Rc7 {[%clk 0:01:30]}  Qxd5 {[%clk 0:00:16]} 20. Bxd5 {[%clk 0:01:29]}  Bb6 {[%clk 0:00:17]} 21. Re7 {[%clk 0:01:26]}  Bc5 {[%clk 0:00:13]} 22. Bxb7 {[%clk 0:01:17]}  Bxe7 {[%clk 0:00:10]} 23. Bxa8 {[%clk 0:01:17]}  Be6 {[%clk 0:00:10]} 24. Be4 {[%clk 0:01:14]}  Rd8 {[%clk 0:00:09]} 25. Bc3 {[%clk 0:01:07]}  Rc8 {[%clk 0:00:08]} 26. Rc1 {[%clk 0:01:03]}  Bg5 {[%clk 0:00:07]} 27. Rc2 {[%clk 0:01:02]}  f5 {[%clk 0:00:07]} 28. Bd3 {[%clk 0:00:59]}  Rd8 {[%clk 0:00:07]} 29. Be2 {[%clk 0:00:58]}  a5 {[%clk 0:00:06]} 30. Bxa5 {[%clk 0:00:55]}  Re8 {[%clk 0:00:06]} 31. Kf1 {[%clk 0:00:41]}  f4 {[%clk 0:00:05]} 32. f3 {[%clk 0:00:39]}  Bf5 {[%clk 0:00:06]} 33. Bc4+ {[%clk 0:00:39]}  Kh8 {[%clk 0:00:05]} 34. Re2 {[%clk 0:00:39]}  Rc8 {[%clk 0:00:04]} 35. Bc3 {[%clk 0:00:37]}  h6 {[%clk 0:00:00]} 36. a4 {[%clk 0:00:36]} 1-0


[Site "https://www.chess.com"]

[Event "Titled Tuesday Blitz May 30 Early 2023"]
[White "Sovetbekova, Nurai"]
[Black "Bagwe Gaurang"]
[WhiteFideId "13801910"]
[BlackFideId "45039895"]
[WhiteElo "1857"]
[BlackElo "1847"]
[Result "1-0"]
[Round "05"]
[TimeControl "180+2"]
[Date "2023.05.30"]
[WhiteClock "0:00:26"]
[BlackClock "0:00:00"]

1. d4 {[%clk 0:03:00]}  d5 {[%clk 0:02:45]} 2. c4 {[%clk 0:03:00]}  c6 {[%clk 0:02:43]} 3. Nf3 {[%clk 0:02:59]}  Nf6 {[%clk 0:02:43]} 4. g3 {[%clk 0:02:59]}  e6 {[%clk 0:02:39]} 5. Bg2 {[%clk 0:02:57]}  Be7 {[%clk 0:02:39]} 6. O-O {[%clk 0:02:58]}  O-O {[%clk 0:02:40]} 7. Nc3 {[%clk 0:02:56]}  Nbd7 {[%clk 0:02:39]} 8. Qd3 {[%clk 0:02:56]}  dxc4 {[%clk 0:02:33]} 9. Qxc4 {[%clk 0:02:55]}  Nb6 {[%clk 0:02:31]} 10. Qb3 {[%clk 0:02:50]}  c5 {[%clk 0:02:28]} 11. dxc5 {[%clk 0:02:47]}  Bxc5 {[%clk 0:02:28]} 12. Rd1 {[%clk 0:02:47]}  Qe7 {[%clk 0:02:25]} 13. Bg5 {[%clk 0:02:46]}  h6 {[%clk 0:02:19]} 14. Bxf6 {[%clk 0:02:44]}  Qxf6 {[%clk 0:02:20]} 15. Ne4 {[%clk 0:02:44]}  Qe7 {[%clk 0:02:21]} 16. Nxc5 {[%clk 0:02:44]}  Qxc5 {[%clk 0:02:22]} 17. Rac1 {[%clk 0:02:45]}  Qe7 {[%clk 0:02:22]} 18. Ne5 {[%clk 0:02:37]}  Nd5 {[%clk 0:02:12]} 19. Bxd5 {[%clk 0:02:25]}  exd5 {[%clk 0:02:11]} 20. Qxd5 {[%clk 0:02:25]}  Be6 {[%clk 0:02:07]} 21. Qd6 {[%clk 0:02:22]}  Qxd6 {[%clk 0:01:21]} 22. Rxd6 {[%clk 0:02:21]}  Bxa2 {[%clk 0:01:21]} 23. Rc7 {[%clk 0:01:50]}  Rfe8 {[%clk 0:01:10]} 24. f4 {[%clk 0:01:47]}  f6 {[%clk 0:01:06]} 25. Nf3 {[%clk 0:01:42]}  Rxe2 {[%clk 0:00:56]} 26. Rdd7 {[%clk 0:01:40]}  Rae8 {[%clk 0:00:45]} 27. Rxg7+ {[%clk 0:01:40]}  Kf8 {[%clk 0:00:45]} 28. Nh4 {[%clk 0:01:25]}  Re1+ {[%clk 0:00:17]} 29. Kg2 {[%clk 0:01:22]}  R8e2+ {[%clk 0:00:13]} 30. Kh3 {[%clk 0:01:22]}  Rd2 {[%clk 0:00:05]} 31. Rh7 {[%clk 0:00:36]}  Bg8 {[%clk 0:00:05]} 32. Ng6+ {[%clk 0:00:25]}  Ke8 {[%clk 0:00:00]} 33. Rh8 {[%clk 0:00:26]} 1-0


[Site "https://www.chess.com"]